Cogmind - Beta 16.1 @@@ ROGUE MODE // 2026.04.04 @ 03:19:23 Player: KURIIRI Result: Destroyed by C1-93Y(R) with Subdweller Laser Performance ------------- Evolutions (0) 0 Regions Visited (2) 400 Robots Destroyed (27) 135 Value Destroyed (514) 514 Prototype IDs (2) 40 Alien Tech Used (0) 0 Bonus (-82) -82 TOTAL SCORE: 1007 Bonus ------- Friendly Fire -82 Cogmind --------- Core Integrity 0/250 Matter 285/300 Energy 100/100 System Corruption 0% Temperature Cool (6) Movement Rolling (100) Location -10/Subcaves Parts ------- > --- POWER (1) -------- (None) > --- PROPULSION (2) --- Compact Wheel > --- UTILITY (2) ------ Subdweller Optics > --- WEAPON (2) ------- Subdweller Machine Gun > --- INVENTORY (5) ---- Meta Core Wheel Compact Wheel Subdweller Monowheel Subdweller Laser Peak State ------------ > --- POWER ------------ Light Ion Engine > --- PROPULSION ------- Wheel Compact Wheel > --- UTILITY ---------- Scrap Shield > --- WEAPON ----------- Subdweller Laser Subdweller Machine Gun > --- INVENTORY -------- Wheel Compact Wheel Light Armor Plating [Rating: 11] Favorites ----------- Power Light Ion Engine Engine Light Ion Engine Propulsion Wheel Treads Light Treads Leg Aluminum Leg Wheel Wheel Utility Light Armor Plating Device Subdweller Optics Storage High-capacity Storage Unit Protection Light Armor Plating Weapon Subdweller Laser Energy Gun Subdweller Laser Energy Cannon Beam Cannon Ballistic Gun Subdweller Machine Gun Build | -11 -10 -10 ------- Run | Yrd Mat Sub Slots Evolved . | . . . Power . | . . . Propulsion . | . . . Utility . | . . . Weapon . | . . . Parts Attached 19 | 3 10 6 Power 1 | . 1 . Engine 1 | . 1 . Core . | . . . Reactor . | . . . Propulsion 4 | 2 1 1 Treads 2 | 2 . . Leg . | . . . Wheel 2 | . 1 1 Hover . | . . . Flight . | . . . Utility 6 | 1 2 3 Device 2 | 1 . 1 Storage 1 | . 1 . Processor . | . . . Hackware . | . . . Protection 3 | . 1 2 Artifact . | . . . Weapon 8 | . 6 2 Energy Gun 3 | . 3 . Energy Cannon 2 | . 2 . Ballistic Gun 3 | . 1 2 Ballistic Cannon . | . . . Launcher . | . . . Special Weapon . | . . . Impact Weapon . | . . . Slashing Weapon . | . . . Piercing Weapon . | . . . Special Melee Weapon . | . . . Unidentified Prototypes . | . . . Parts Lost 6 | . . 6 Power 1 | . . 1 Propulsion 2 | . . 2 Utility 2 | . . 2 Weapon 1 | . . 1 Highest Loss Streak 4 | . . 4 To Critical Strikes . | . . . Average Backups 9 | 6 9 8 Power . | 1 1 . Propulsion 4 | 4 3 4 Utility 1 | . 1 1 Weapon 2 | 1 3 2 Tool/Special . | . . . Unused Backups 19 | . 6 13 Power 4 | . 2 2 Propulsion 7 | . . 7 Utility 3 | . 2 1 Weapon 4 | . 2 2 Tool/Special 1 | . . 1 Average Slot Usage (%) 96 | . 99 94 Engine 13 | . 14 13 Treads 10 | . 21 3 Wheel 17 | . 6 23 Device 5 | . 4 6 Storage 7 | . 14 4 Protection 12 | . 9 13 Energy Gun 11 | . 8 13 Energy Cannon 7 | . 12 4 Ballistic Gun 8 | . 6 9 Peak Build Rating 11 | 9 10 11 Average Rating 9 | 6 8 10 On Entrance 8 | 6 9 10 Avg Prop Armor Cover (%) 9 | . 9 10 Naked Turns . | . . . Heaviest Build 55 | 15 55 53 Greatest Support 40 | 40 40 26 Greatest Overweight (x) 5 | . 5 5 Average Overweight (x) 1 | . 2 1 Largest Inventory Capacity 20 | 8 20 20 Average Capacity 11 | 8 13 9 Most Carried 20 | 6 20 20 Average Carried 9 | 5 9 8 Final Capacity 20 | 8 20 5 Final Carried 20 | 4 20 5 Class Distribution -------------------- 57% | Mutant 28% | Scavenger-Mutant 14% | Subdweller-Mutant Dominant Class ---------------- Mutant | -10/Materials Scavenger-Mutant | -10/Subcaves Resources | -11 -10 -10 ----------- Run | Yrd Mat Sub Matter Collected 545 | 206 230 109 Remotely . | . . . Salvage Created 822 | 28 542 252 Parts 53 | 5 29 19 Haulers Intercepted 2 | . 2 . Recyclers Shooed . | . . . Parts Field Recycled . | . . . Retrieved Matter . | . . . Parts Self-Destructed 8 | . . 8 Prevented . | . . . Parts Restored . | . . . Kills | -11 -10 -10 ------- Run | Yrd Mat Sub Combat Hostiles Destroyed 20 | . 10 10 Guns 14 | . 4 10 Cannons 5 | . 5 . Classes Destroyed 10 | 1 7 2 Worker 1 | . 1 . Tunneler 1 | 1 . . Hauler 2 | . 2 . Operator 1 | . 1 . Watcher 1 | . 1 . Swarmer 10 | . 3 7 Grunt 5 | . 5 . Artisan 2 | . . 2 Subdweller 5 | . 2 3 Zionite 1 | . . 1 Best Kill Streak 4 | 1 3 4 Combat Bots Only 4 | . 3 4 Max Kills in Single Turn 1 | 1 1 1 Gunslinging . | . . . Exploded . | . . . Melee . | . . . Uniques/NPCs Destroyed . | . . . Combat | -11 -10 -10 -------- Run | Yrd Mat Sub Hostile Shots Fired 148 | . 54 94 Missed 43 | . 15 28 Hits 105 | . 39 66 Projectile 105 | . 39 66 AOE 1 | . . 1 Damage Taken 1194 | . 423 771 Core 256 | . 32 224 Absorbed by Shields . | . . . Core Remaining (%) 100 | 100 . . Volleys Fired 109 | 4 51 54 Largest 2 | 2 2 2 Hottest 120 | 70 120 120 Shots Fired 195 | 8 95 92 Gun 159 | 8 65 86 Cannon 36 | . 30 6 Launcher . | . . . Special . | . . . Kinetic 75 | 4 28 43 Thermal 118 | 4 65 49 Explosive . | . . . Electromagnetic 2 | . 2 . Robot Hit Streak 11 | 3 8 11 Robot Miss Streak 4 | 2 4 4 Penetration Max . | . . . Secondary Targets 4 | . 1 3 Max Gunslinging Chain 1 | . 1 1 Shots Hit Robots 98 | 4 54 40 Core Hits 39 | 2 20 17 Critical Kills 1 | . 1 . Critical Parts Destroyed 1 | . . 1 Critical Strikes 3 | . 2 1 Burn 1 | . 1 . Meltdown 1 | . 1 . Destroy 1 | . . 1 Melee Attacks . | . . . Impact . | . . . Slashing . | . . . Piercing . | . . . Sneak Attacks . | . . . Combat Hostiles . | . . . Follow-up Attacks . | . . . Damage Inflicted 1730 | 46 823 861 Guns 1323 | 46 487 790 Cannons 407 | . 336 71 Explosions . | . . . Melee . | . . . Ramming . | . . . Kinetic 647 | 33 208 406 Thermal 1057 | 13 589 455 Explosive . | . . . Electromagnetic 26 | . 26 . Impact . | . . . Slashing . | . . . Piercing . | . . . Highest Corruption . | . . . Average Corruption . | . . . Corruption Purged . | . . . Corruption Blocked . | . . . Overload Shots . | . . . Overflow Damage 2 | . 2 . Projectiles 2 | . 2 . Explosions . | . . . Melee . | . . . Knockbacks . | . . . Impact . | . . . Kinetic . | . . . Secondary . | . . . Self-Inflicted Damage . | . . . Shots . | . . . Rammed . | . . . Targets Rammed . | . . . Kicked . | . . . Crushed . | . . . Highest Temperature 299 | 36 299 27 Average Temperature 91 | 19 102 10 Received Heat Transfer 270 | . 204 66 Effects 3 | . 3 . Energy Bleed 1 | . 1 . Interference 2 | . 2 . Siege Activations . | . . . Martial Activations . | . . . Shielding Activations . | . . . Robots Disrupted . | . . . Combat Hostiles . | . . . Robots Corrupted . | . . . Combat Hostiles . | . . . Parts Fried . | . . . Impact Corruptions . | . . . Robots Melted 2 | . 2 . Combat Hostiles 1 | . 1 . Parts Melted 3 | . 3 . Heat Transferred 2152 | 37 1517 598 Parts Sabotaged . | . . . Parts Stolen . | . . . Parts Stripped . | . . . Power Chain Reactions . | . . . Alert | -11 -10 -10 ------- Run | Yrd Mat Sub Maximum Alert Level . | . . . Low Security (%) 100 | 100 100 . Level 1 . | . . . Level 2 . | . . . Level 3 . | . . . Level 4 . | . . . Level 5 . | . . . High Security . | . . . Max Security . | . . . Peak Influence 85 | 5 85 . Initial . | . . . Average 16 | 2 16 . Influence Increases 510 | 5 295 210 Destroy 0b10 Robot/C 300 | . 160 140 Destroy 0b10 Robot/NC 30 | 5 25 . Destroy Leader 56 | . 46 10 Successful Hack 33 | . 33 . Select Force Hacks 30 | . 30 . Destroy Structure 1 | . 1 . Lose Combat Pursuer 60 | . . 60 Influence Decreases 416 | 5 277 134 Entered New Map 10 | . . 10 Time Decay 356 | 5 277 74 Lost Part 50 | . . 50 Squads Dispatched 4 | . 4 . Investigation 3 | . 3 . Extermination . | . . . Reinforcement 1 | . 1 . Assault . | . . . Garrison . | . . . Intercept . | . . . Searches Triggered . | . . . Construction Impeded . | . . . Haulers Reinforced . | . . . Active Scanning Responses . | . . . Cargo Convoy Interrupts . | . . . Stealth | -11 -10 -10 --------- Run | Yrd Mat Sub Distress Signals 3 | . 3 . Communications Jammed . | . . . Distress Signals . | . . . Times Spotted 36 | . 19 17 Peak Tracking Total 6 | . 4 6 Tactical Retreats 2 | . . 2 Traps | -11 -10 -10 ------- Run | Yrd Mat Sub Traps Triggered 1 | . 1 . Indirectly . | . . . Trap Hack Attempts . | . . . Triggered . | . . . Disarmed . | . . . Reprogrammed . | . . . Reused . | . . . Traps Extracted . | . . . Installed . | . . . Triggered . | . . . Machines | -11 -10 -10 ---------- Run | Yrd Mat Sub Machines Disabled 1 | . . 1 Max in Single Turn 1 | . . 1 Machines Repaired . | . . . Machines Dismantled . | . . . Machines Sabotaged . | . . . Overloaded Fab Kills . | . . . Hacking | -11 -10 -10 --------- Run | Yrd Mat Sub Machines Accessed 8 | . 7 1 Terminals 6 | . 6 . Fabricators . | . . . Repair Stations . | . . . Recycling Units 1 | . 1 . Scanalyzers . | . . . Garrison Access . | . . . Total Hacks 30 | . 26 4 Successful 20 | . 16 4 Failed 10 | . 10 . Catastrophic . | . . . Database Lockouts . | . . . Manual 24 | . 24 . Terminals 25 | . 25 . Fabricators . | . . . Repair Stations . | . . . Recycling Units 1 | . 1 . Scanalyzers . | . . . Garrison Access . | . . . Terminal Hacks 9 | . 5 4 Record 4 | . . 4 Robot Analysis 2 | . 2 . Prototype ID Bank 1 | . 1 . Terminal Index 1 | . 1 . Locate Traps 1 | . 1 . Fabricator Hacks . | . . . Repair Station Hacks . | . . . Recycling Unit Hacks . | . . . Scanalyzer . | . . . Garrison Access Hacks . | . . . Unauthorized Hacks 11 | . 11 . Terminals 10 | . 10 . Assimilate 1 | . 1 . Botnet 3 | . 3 . Operators 1 | . 1 . Skim 5 | . 5 . Fabricators . | . . . Repair Stations . | . . . Recycling Units 1 | . 1 . Tunnel 1 | . 1 . Scanalyzers . | . . . Garrison Access . | . . . Data Cores Recovered . | . . . Used . | . . . Hacking Detections 6 | . 6 . Full Trace Events . | . . . Feedback Events . | . . . Feedback Blocked . | . . . Robot Schematics Acquired . | . . . Robots Built . | . . . Authchips . | . . . Time . | . . . Total Robot Build Rating . | . . . Part Schematics Acquired . | . . . Parts Built . | . . . Authchips . | . . . Time . | . . . Total Part Build Rating . | . . . Part Studies Acquired . | . . . Parts Repaired . | . . . Time . | . . . Parts Recycled . | . . . Recycled Matter . | . . . Retrieved Matter . | . . . Retrieved Components . | . . . Parts Scanalyzed . | . . . Part Schematics Acquired . | . . . Parts Damaged . | . . . Bothacking | -11 -10 -10 ------------ Run | Yrd Mat Sub Used RIF Installer . | . . . Robots Hacked . | . . . Non-combat . | . . . Combat . | . . . Robot Hacks Applied . | . . . Relay Couplers Released . | . . . Fabnet Peak Effective % . | . . . Robots Rewired . | . . . Allies Hacked . | . . . Hacks Repelled . | . . . Allies | -11 -10 -10 -------- Run | Yrd Mat Sub Total Allies 1 | . 1 . Largest Group 1 | . 1 1 Highest-Rated Group 10 | . 10 10 Highest-Rated Ally 10 | . 10 10 Total Orders 3 | . 2 1 STAY 2 | . 1 1 FOLLOW 1 | . 1 . Ally Attacks . | . . . Total Damage . | . . . Kills . | . . . Allies Corrupted . | . . . Allies Melted . | . . . Intel | -11 -10 -10 ------- Run | Yrd Mat Sub Active Infowar (turns) 527 | 8 384 135 Optics 135 | . . 135 Terrain 392 | 8 384 . Robot Analysis Total 2 | . 2 . Derelict Logs Recovered . | . . . Drone Launches . | . . . Drone Recoveries . | . . . Exploration | -11 -10 -10 ------------- Run | Yrd Mat Sub Turns Passed 3300 | 23 1204 2073 Spaces Moved 2342 | 6 629 1707 Core . | . . . Treads 314 | 1 313 . Legs 5 | 5 . . Wheels 2023 | . 316 1707 Hover . | . . . Flight . | . . . Fastest Speed 90 | 120 155 90 Average Speed 120 | 126 158 106 Slowest Speed 240 | 160 240 155 Overloaded Moves . | . . . Propulsion Burnouts . | . . . Robots Hopped . | . . . Potential Cave-ins . | . . . Cave-ins Triggered . | . . . Exploration Rate (%) 52 | 2 87 68 Regions Visited 2 Branch Regions 1 Pre-discovered Areas 3 | . 1 2 Known Exits Taken 1 | . 1 . Unknown Exits Taken 1 | 1 . . Scrap Searched 1 | . . 1 Spaces Dug 5 | . . 5 Terrain Destroyed 7 | . . 7 Melee . | . . . Projectile 7 | . . 7 AOE . | . . . Terrain Rammed . | . . . Walls Destroyed . | . . . Machines Disabled . | . . . Actions | -11 -10 -10 --------- Run | Yrd Mat Sub Total 2628 | 14 741 1873 Wait 132 | . 32 100 Move 2340 | 5 628 1707 Hop . | . . . Pick Up 16 | . 13 3 Fast Attach 9 | 1 6 2 Attach 4 | 2 . 2 Detach 4 | . 4 . Swap 7 | . 5 2 Drop 7 | 2 2 3 Fire 109 | 4 51 54 Melee . | . . . Ram . | . . . Kick . | . . . Crush . | . . . Escape Stasis . | . . . Rewire . | . . . Trap . | . . . Miscellaneous . | . . . Route ------- -11/Scrapyard -10/Materials (discovered 5 exits: *Mat x3 / *Min / *Sub) -10/Subcaves (discovered 2 exits: [*Rec] / [*Scr]) History --------- Turn | Location | Event 14 | -11/Scrapyard | Discovered new exit (range 2) 24 | -11/Scrapyard | Entered Materials 310 | -10/Materials | Build established: Mutant 351 | -10/Materials | Discovered new exit (range 8) 400 | -10/Materials | Discovered new exit (range 12) 825 | -10/Materials | Discovered new exit (range 10) 920 | -10/Materials | Discovered new exit (range 7) 924 | -10/Materials | Derelicts attacked the area 1043 | -10/Materials | Identified exit to Materials 1043 | -10/Materials | Identified exit to Mines 1043 | -10/Materials | Identified exit to Subcaves 1089 | -10/Materials | Learned Storage trap positions 1165 | -10/Materials | Loaded intel: 20 trap records 1190 | -10/Materials | Learned location of 1 exit from Storage 1224 | -10/Materials | Learned Materials emergency access door positions 1228 | -10/Materials | Entered Subcaves 1228 | -10/Subcaves | Accompanied by 1 ally 1229 | -10/Subcaves | Approached by a straggling Scientist 1241 | -10/Subcaves | A swath of the cavern ceiling suddenly collapsed 1513 | -10/Subcaves | Scientist uncovered a shortcut to Scraptown 1784 | -10/Subcaves | Learned location of Zion (-7) 1784 | -10/Subcaves | Met a Zionite searching for "candidates" 1928 | -10/Subcaves | Visited 4L-MR0's lab 2147 | -10/Subcaves | Build established: Subdweller-Mutant 2405 | -10/Subcaves | Visited Clippyterm 2408 | -10/Subcaves | Learned location of Section 7 (-2) 2503 | -10/Subcaves | Shifting Twisted Machinery released Sub. Monowheel 2510 | -10/Subcaves | Shifting Twisted Machinery released Sub. Machine Gun 2608 | -10/Subcaves | Build established: Scavenger-Mutant 2661 | -10/Subcaves | Found Prototype Power Core 3236 | -10/Subcaves | Discovered new exit (range 14) 3260 | -10/Subcaves | Core integrity fell below 50% 3287 | -10/Subcaves | Lost 4 parts (1p1n1u1w) 3290 | -10/Subcaves | Ambushed by Subdwellers from Twisted Machinery 3300 | -10/Subcaves | Core integrity fell below 20% 3301 | -10/Subcaves | Destroyed by C1-93Y(R) with Subdweller Laser Last Messages --------------- 03236_ EXIT=FOUND 03242_ Lgt. Ion Engine destroyed. 03242_ S-10 Pest suffers critical hit (Destroy). 03242_ Destroyed Flight Unit. 03248_ Sub. Laser shoots sparks and powers down. 03252_ S-10 Pest destroyed. 03252_ Switching to secondary target: S-10 Pest. 03255_ Lgt. Armor Plating destroyed. 03255_ S-10 Pest destroyed. 03255_ Switching to secondary target: S-10 Pest. 03256_ Wheel destroyed. 03256_ Sub. Machine Gun destroyed. 03262_ S-10 Pest destroyed. 03264_ Lgt. Assault Rifle fries itself beyond repair. 03270_ S-10 Pest destroyed. 03273_ Acquired 10 matter. 03277_ Flight Unit fries itself beyond repair. 03290_ A8-YW0(R) emerges from the Twisted Machinery. Map ----- +----------------------------------------------------+ | ?????????????????????????????????????????????? | | ?????????????????????????????????????????????? | | ?????????????????????????????????????????????? | | ?????????????????????????????????????????????? | | ?????????????????????????????????????????????? | | ?????????????????????????????????????????????? | | ?????????????????????????????????????????????? | | ?????????????????????????????????????????????? | | ?????????????????????????????????????????????? | | ?????????????????????????????????????????????? | | ?????????????????????????????????????????????? | | ?????????????????????????????????????????????? | | ?????????????????????????????????????????????? | | ???????????????????????##????????????????????? | | ???????????????????????# ????????????????????? | | ???????????????????????# ""??????????????????? | | ?????????????????????##? """?????????????????? | | ?????????????????????# """"?????????????????? | | ?????????????????????? """?????????????????? | | ?????????????????????? # "#?????????????????? | | ??????????????????????? ##????????????????? | | ???????????????????????? ?????????????????? | | ????????????????????????#RR#?????????????????? | | ????????????????????????# #?????????????????? | | ???????????????????????## #?????????????????? | | ???????????????????????# @ #?????????????????? | | ???????????????????????## #?????????????????? | | ???????????????????????## #?????????????????? | | ???????????????????????# ##????????????????? | | ???????????????????????## #????????????????? | | ???????????????????????## #????????????????? | | ???????????????????????# ##????????????????? | | ???????????????????????## #????????????????? | | ????????????????????????# #????????????????? | | ?????????????####???????# #????????????????? | | ?????????????#""" ??????# ##????????????????? | | ?????????????#" ????## #????????????????? | | ?????????????#" #### ##????????????????? | | #####???????##"" #????????????????? | | #???????#< *% ##????????????????? | | ##??????##"" % ##????????????????? | | ##??????#" #### % #????????????????? | | #### ##?????#" ????# #????????????????? | | #?## #??##?#""" ?????## #????????????????? | | ### #%### #?####??????# #????????????????? | | ### ### # #????????????## ##????????????????? | | #?# ## ##????????????# #?????????????????? | | #?### ### ##?????????#### #?###?????????????? | | ###?## ### ##????????# ### #?????????????? | | # ##?# #### #????????# ## #?????????????? | +----------------------------------------------------+ Best States ------------- Heat Dissipation 25 Energy Generation 10 Energy Capacity 250 Matter Stores 300 Matter Capacity 300 Sight Range 21 Terrain Scan Range 16 Terrain Scan Density 10 Armor Coverage 800 Evasion (%) 45 Recoil Reduction 2 Item Schematics ----------------- None Robot Schematics ------------------ None Fabricated ------------ Nothing Repaired ---------- Nothing Studied --------- None Alien Tech Used ----------------- None Achievements -------------- None Challenges ------------ None Game ------ Seed LaserDrainedInterface Manual? 0 Play Time 00:17:13 Cumulative 384.1 hours Start 2026.04.04 @ 03:04:16 End 2026.04.04 @ 03:19:23 Sessions 1 Manual Loads 0 Difficulty Rogue Special Mode None Game No. 317 Rogue 281 Adventurer 36 Explorer 0 Win Type - Total 5 Types 2/0/0/1/0/0/0/2/0/0 Lore% 73 Gallery% 66 Achievement% 54 Wizard Run 0 Options --------- Layout 1 ASCII 0 Keyboard 0 Movement Numpad Keybinds 0 Fullscreen 1 Font 48/Smallcaps Map View 50x35 Zoom Use 0% Tactical HUD 1 Map Filters NONE Filters NONE Steam 1 RUN: 634854ef-70f8-49bb-bcfc-fa9c89d0ced8